bitfinex/quotes_ETHUSD_20250722
["timestamp","ask_amount","ask_price","bid_price","bid_amount"]
[1753172563828,6.29243089,3646.4,3646.3,1e-08]
[1753172564035,8.49390895,3646.4,3646.3,1e-08]
[1753172564233,23.43760895,3646.4,3646.3,1e-08]
[1753172565019,28.10960895,3646.4,3646.3,1e-08]
[1753172566614,7.34818222,3645.8,3645.7,0.001]
[1753172566851,19.81164178,3645.8,3645.7,0.001]
[1753172567215,34.75534178,3645.8,3645.7,0.001]
[1753172567744,34.75434178,3645.8,3645.7,0.001]
[1753172568155,22.29188222,3645.8,3645.7,0.001]
[1753172568361,28.00006028,3645.8,3645.7,0.001]
[1753172568668,23.33106028,3645.8,3645.7,0.001]
[1753172568840,28.00006028,3645.8,3645.7,0.001]
[1753172569146,23.33106028,3645.8,3645.7,0.001]
[1753172569460,20.79288222,3645.8,3645.7,0.001]
[1753172569630,24.91188222,3645.8,3645.7,0.001]
[1753172570241,25.35558222,3645.8,3645.7,0.001]
[1753172570816,25.90558222,3645.8,3645.7,0.001]
[1753172571615,26.91208222,3645.8,3645.7,0.001]
[1753172571956,2.74333369,3645.2,3644.3,1.0205]
[1753172572261,2.74376303,3644.7,3644.3,1.0205]
[1753172572569,4.0065,3644.6,3643.2,1.0205]
[1753172572853,0.1368,3643.9,3643.6,2.74453822]
[1753172573050,0.1368,3643.9,3643.7,0.4525]
[1753172573213,0.1368,3643.9,3643.8,0.4525]
[1753172573657,0.1368,3643.9,3643.3,3.33405967]
[1753172573870,0.1368,3643.9,3643.3,0.97962425]
[1753172574147,7.41225154,3644.0,3643.4,0.25536478]
[1753172574347,2.74446617,3643.7,3643.5,0.25536478]
[1753172574513,2.74444897,3643.8,3643.6,0.25536478]
[1753172574715,2.74432604,3643.9,3643.7,0.25536478]
[1753172575018,7.41126023,3644.0,3643.8,0.25536478]
[1753172575218,2.74431241,3643.9,3643.5,0.4525]
[1753172575555,4.667,3644.0,3643.6,0.25516243]
[1753172575851,4.667,3644.0,3643.7,0.25516243]
[1753172576051,2.74431241,3643.9,3643.8,0.25516243]
[1753172576259,3.55,3644.5,3643.8,0.25516243]
[1753172576456,15.71536075,3644.6,3644.0,1.0205]
[1753172576457,14.70886075,3644.6,3644.0,1.0205]
[1753172576668,0.1368,3644.4,3644.2,2.74408649]
[1753172577114,0.1368,3644.4,3644.3,0.4525]
[1753172577946,0.1368,3644.4,3644.0,1.0205]
[1753172578147,0.1368,3644.2,3644.0,1.0205]
[1753172578334,0.1368,3644.2,3644.1,2.74411547]
[1753172578650,0.1368,3644.3,3644.1,3.3950244]
[1753172578817,0.1368,3644.3,3644.1,2.74413797]
[1753172579019,0.1368,3644.3,3644.2,3.19658649]
[1753172580656,0.9867,3646.6,3645.5,0.9688]
[1753172580953,4.664,3646.6,3645.6,0.4525]
[1753172581137,0.1368,3646.1,3645.7,0.02742957]
[1753172581539,0.1368,3646.1,3645.5,1.5581]
[1753172581717,2.7429359,3645.8,3645.1,0.1368]
[1753172581912,7.79345956,3645.9,3644.7,3.19617996]
[1753172581913,2.74305007,3645.6,3644.7,3.19617996]
[1753172582152,2.74313535,3645.5,3644.7,0.4525]
[1753172582457,4.663,3645.7,3644.9,1.0517]
[1753172582748,3.0,3645.9,3645.4,2.74313038]
[1753172582930,10.4057394,3646.0,3645.5,0.4525]
[1753172583143,2.742807,3645.9,3645.5,0.4525]
[1753172583349,10.40575449,3646.0,3645.5,0.4525]
[1753172583773,10.40574741,3646.0,3645.5,0.4525]
[1753172584379,2.74280713,3645.9,3645.5,0.4525]
[1753172584748,3.0,3646.0,3645.1,0.4525]
[1753172584950,5.7427585,3646.0,3645.3,2.74323279]
[1753172585344,3.0,3646.0,3645.4,2.74317244]
[1753172585863,5.74274201,3646.0,3645.3,2.74324605]
[1753172586177,3.0,3646.0,3645.4,2.74316071]
[1753172586339,3.0,3646.1,3645.4,2.74310796]
[1753172586547,2.74273566,3646.0,3645.3,2.74324051]
[1753172587053,4.661,3646.1,3645.3,2.74324051]
[1753172587054,2.74281783,3645.9,3645.3,2.74324051]
[1753172587371,2.74289925,3645.8,3645.2,2.7433126]
[1753172587572,2.74282481,3645.9,3645.1,0.4525]
[1753172587774,3.0,3645.9,3645.4,2.74318023]
[1753172588145,3.0,3645.9,3645.4,3.17408023]
[1753172588573,0.002,3646.4,3645.5,0.4309]
[1753172588873,0.002,3646.4,3645.7,2.74295745]
[1753172589053,0.002,3646.4,3646.1,2.74265077]
[1753172589447,0.002,3646.4,3646.2,0.4309]
[1753172589640,0.002,3646.4,3646.3,2.7425061]
[1753172589868,0.002,3646.4,3646.3,0.4309]
[1753172590455,0.002,3646.4,3645.8,0.4309]
[1753172590683,0.002,3646.4,3645.6,5.648]
[1753172590851,0.002,3646.4,3645.8,2.7428677]
[1753172591186,0.002,3646.4,3645.6,8.39102629]
[1753172591187,2.74273176,3646.0,3645.9,0.25561201]
[1753172591364,5.74273176,3646.0,3645.9,0.25561201]
[1753172593471,0.002,3646.4,3645.9,0.68651201]
[1753172593677,4.655,3646.2,3646.0,0.68651201]
[1753172593979,4.655,3646.2,3646.1,0.25561201]
[1753172595191,7.39758131,3646.2,3646.1,0.25561201]
[1753172595357,10.39758131,3646.2,3646.1,0.25561201]
[1753172595893,18.64284087,3646.2,3646.1,0.25561201]
[1753172596597,10.39758131,3646.2,3646.1,0.25561201]
[1753172596797,11.71178258,3646.2,3646.1,0.25561201]
[1753172597163,11.70978258,3646.2,3646.1,0.25561201]
[1753172597376,7.05678258,3646.2,3646.1,0.25561201]
[1753172597603,11.70978258,3646.2,3646.1,0.25561201]
[1753172597898,5.74258131,3646.2,3646.1,0.25561201]
[1753172598102,0.002,3646.4,3646.1,1.28331201]
[1753172598298,2.74363476,3644.8,3644.7,0.001]
[1753172598501,2.0855866,3644.8,3644.7,0.001]
[1753172598678,0.4518,3645.9,3644.7,1.0388]
[1753172598882,0.4518,3645.5,3644.7,0.001]
[1753172599074,2.74363476,3644.8,3644.7,0.001]
[1753172599591,7.39463476,3644.8,3644.7,0.001]
[1753172600183,7.84643476,3644.8,3644.7,0.001]
[1753172601001,7.39463476,3644.8,3644.7,0.001]
[1753172601570,1.0305,3645.2,3644.7,0.001]
[1753172601883,0.71514394,3647.2,3644.7,0.001]
[1753172601884,4.65,3645.1,3644.7,0.001]
[1753172602086,2.74363476,3644.8,3644.7,0.001]
[1753172602808,7.39363476,3644.8,3644.7,0.001]
[1753172603105,7.84543476,3644.8,3644.7,0.001]
[1753172603725,7.39363476,3644.8,3644.7,0.001]
[1753172603874,7.84543476,3644.8,3644.7,0.001]
[1753172604304,12.55826666,3644.8,3644.7,0.001]
[1753172604823,27.05826666,3644.8,3644.7,0.001]
[1753172605578,27.05826666,3644.8,3644.7,1e-08]
[1753172605990,6.29371004,3644.7,3644.6,1e-08]
[1753172606203,15.93522999,3644.7,3644.6,1e-08]
[1753172606630,30.43522999,3644.7,3644.6,1e-08]
[1753172606787,30.43522999,3644.7,3643.9,0.001]
[1753172606788,6.2942371,3644.0,3643.9,1e-08]
[1753172606982,10.9422371,3644.0,3643.9,1e-08]
[1753172607412,11.3940371,3644.0,3643.9,1e-08]
[1753172607717,11.7028358,3644.0,3643.9,1e-08]
[1753172607907,26.2028358,3644.0,3643.9,1e-08]
[1753172608236,2.7448397,3643.2,3643.1,0.001]
[1753172608437,7.3918397,3643.2,3643.1,0.001]
[1753172608940,2.7445148,3643.7,3643.1,0.001]
[1753172608941,14.5,3644.0,3643.2,1.0105]
[1753172609223,2.74474104,3643.4,3643.2,1.0105]
[1753172609727,2.74474104,3643.4,3643.1,0.001]
[1753172609728,5.7448397,3643.2,3643.1,0.001]
[1753172609888,5.8816397,3643.2,3643.1,0.001]
[1753172610400,5.8816397,3643.2,3643.1,0.25657881]
[1753172610908,10.5286397,3643.2,3643.1,0.25657881]
[1753172612389,3.1368,3643.2,3643.1,0.25657881]
[1753172612634,3.1368,3643.2,3643.1,1.71617881]
[1753172612942,0.1368,3643.2,3643.1,1.88779669]
[1753172613436,0.1368,3643.2,3643.1,1.28527881]
[1753172613636,7.5266397,3643.2,3643.1,0.25657881]
[1753172613791,7.9784397,3643.2,3643.1,0.25657881]
[1753172614430,2.8816397,3643.2,3643.1,0.25657881]
[1753172614639,7.5266397,3643.2,3643.1,0.25657881]
[1753172614840,4.733447,3643.2,3643.1,0.25657881]
[1753172615141,4.732447,3643.2,3643.1,0.68747881]
[1753172615439,0.088447,3643.2,3643.1,0.68747881]
[1753172615645,0.088447,3643.2,3643.1,1.03073525]
[1753172615806,0.088447,3643.2,3643.1,2.04503525]
[1753172616138,0.088447,3643.2,3643.1,1.70177881]
[1753172616572,0.088447,3643.2,3642.7,0.001]
[1753172616573,0.9885,3643.1,3642.7,0.001]
[1753172616701,6.2951411,3642.8,3642.7,0.001]
[1753172616908,25.4381411,3642.8,3642.7,0.001]
[1753172617119,27.3546717,3642.8,3642.7,0.001]
[1753172617321,27.3546717,3642.8,3642.7,1e-08]
[1753172617522,3.29551794,3642.3,3641.1,1.4927]
[1753172617753,18.7319775,3642.3,3641.1,1.4927]
[1753172618122,19.1768775,3642.3,3641.1,1.4927]
[1753172618425,19.61383789,3642.3,3642.2,1e-08]
[1753172618623,15.96223789,3642.3,3642.2,1e-08]
[1753172618874,20.60423789,3642.3,3642.2,1e-08]
[1753172619734,20.60523789,3642.3,3642.2,1e-08]
[1753172620844,35.10523789,3642.3,3642.2,1e-08]
[1753172623324,20.24551794,3642.3,3642.2,1e-08]
[1753172623631,10.38651794,3642.3,3642.2,1e-08]
[1753172624432,11.38141794,3642.3,3642.2,1e-08]
[1753172625352,12.38921794,3642.3,3642.2,1e-08]
[1753172625722,5.74559332,3642.2,3642.1,1e-08]
[1753172625927,14.53395288,3642.2,3642.1,1e-08]
[1753172626877,2.74657364,3640.9,3640.8,1.0219]
[1753172627162,2.74657364,3640.9,3640.4,1.0219]
[1753172627163,2.74694314,3640.5,3640.4,1.0219]
[1753172627547,2.88375088,3640.4,3640.3,0.001]
[1753172628463,2.88375088,3640.4,3640.3,0.2554496]
[1753172629161,2.74755467,3639.6,3639.5,0.001]
[1753172629361,2.74755467,3639.6,3639.5,0.25550745]
[1753172629527,4.639,3640.1,3639.5,1.72190745]
[1753172629724,3.7739443,3640.4,3639.5,1.72190745]
[1753172629725,0.1368,3639.8,3639.6,0.4445]
[1753172629927,0.1368,3639.8,3639.7,0.14948771]
[1753172630128,7.38503002,3640.3,3639.7,0.1769625]
[1753172630330,0.1368,3640.2,3639.8,0.4445]
[1753172630637,0.1368,3640.0,3639.9,0.4445]
[1753172630946,2.88405274,3640.0,3639.9,0.4445]
[1753172631145,2.88405274,3640.0,3639.5,1.0229]
[1753172631464,4.638,3640.1,3639.6,0.4445]
[1753172631690,0.1368,3639.7,3639.6,0.59124]
[1753172632260,2.883,3639.2,3635.8,0.001]
[1753172632475,30.55,3639.6,3635.8,0.001]
[1753172632476,10.54275639,3637.3,3636.7,0.9738]
[1753172632686,2.74967003,3636.8,3636.7,0.9738]
[1753172632974,4.638,3637.3,3636.7,0.9738]
[1753172633127,2.74936764,3637.2,3636.7,1.4183]
[1753172633334,2.74967003,3636.8,3636.7,0.9738]
[1753172633541,4.637,3637.1,3636.7,0.9738]
[1753172633825,0.20502944,3637.2,3636.7,1.4183]
[1753172634034,2.74945938,3637.1,3636.8,0.4445]
[1753172634236,0.21077562,3637.2,3636.8,0.4445]
[1753172634465,4.637,3637.5,3636.9,0.4445]
[1753172634838,2.74959443,3636.9,3636.7,0.9738]
[1753172635064,2.74959443,3636.9,3636.0,1.0448]
[1753172635065,4.638,3636.9,3636.0,1.0448]
[1753172635225,2.74974564,3636.7,3636.0,1.0448]
[1753172636050,7.38774564,3636.7,3636.0,1.0448]
[1753172636468,11.84638327,3636.7,3635.8,0.001]
[1753172636832,2.75035066,3635.9,3635.8,0.001]
[1753172637063,10.38735066,3635.9,3635.8,0.001]
[1753172638241,2.75083999,3635.3,3634.8,0.9737]
[1753172638473,2.75083999,3635.3,3634.9,0.4445]
[1753172638831,2.75083999,3635.3,3634.8,0.9737]
[1753172638832,2.75110732,3634.9,3634.8,0.9737]
[1753172639463,2.75110732,3634.9,3634.4,0.4445]
[1753172639770,2.75131704,3634.7,3634.3,1.0182]
[1753172639974,2.75103163,3635.0,3634.3,1.0182]
[1753172640173,3.0,3634.8,3633.7,1.4592]
[1753172640482,1.0358,3635.8,3634.4,2.75145783]
[1753172640663,8.63346603,3636.2,3635.1,2.75095205]
[1753172640852,2.74982126,3636.6,3635.3,1.0169]
[1753172641052,4.638,3637.0,3635.4,0.4445]
[1753172641268,4.638,3637.0,3635.5,0.25220881]
[1753172641579,2.75035371,3635.9,3635.4,0.4445]
[1753172641762,4.638,3636.9,3635.4,0.4445]
[1753172641763,2.75050495,3635.7,3635.4,0.4445]
[1753172641977,3.0,3635.9,3635.3,1.0169]
[1753172642143,2.7509837,3635.1,3634.7,1.4071]
[1753172642338,2.75072894,3635.4,3634.0,2.75175233]
[1753172642339,2.7513807,3634.6,3634.0,0.4445]
[1753172642568,0.1368,3634.5,3634.1,0.9626]
[1753172642751,2.75163722,3634.2,3634.1,0.9626]
[1753172643148,2.75158465,3634.3,3634.1,0.9626]
[1753172643750,2.75163722,3634.2,3634.1,0.9626]
[1753172643972,2.75157513,3634.3,3634.1,0.9626]
[1753172644237,0.9649,3635.5,3634.2,0.4445]
[1753172644443,2.75040974,3635.9,3635.0,2.75098063]
[1753172644764,0.1368,3635.1,3635.0,2.75103163]
[1753172644964,0.9885,3636.7,3635.5,2.7505842]
[1753172645180,2.74970064,3636.8,3635.9,1.0188]
[1753172645353,2.74967496,3636.8,3635.9,1.0188]
[1753172645557,0.1368,3636.0,3635.9,1.0188]
[1753172645773,2.74960621,3636.9,3636.1,2.75019473]
[1753172645977,0.9885,3637.3,3636.1,2.75019473]
[1753172645978,0.1368,3636.3,3636.1,2.75019473]
[1753172646184,0.1368,3636.3,3636.2,0.4445]
[1753172646583,0.1368,3636.3,3636.0,0.37692867]
[1753172646889,0.1368,3636.0,3635.9,1.0188]
[1753172647390,0.1368,3636.0,3635.9,1.4839]
[1753172647698,0.1368,3636.0,3635.0,1.0188]
[1753172648002,0.4704,3636.0,3635.0,1.0188]
[1753172648286,2.75095595,3635.1,3635.0,1.0188]
[1753172648446,2.75068546,3635.5,3634.5,0.9921]
[1753172648789,5.88332147,3635.7,3634.5,0.9921]
[1753172648790,0.1368,3634.7,3634.5,1.4572]
[1753172648988,20.38332147,3636.1,3634.7,2.7512587]
[1753172648989,0.1368,3635.0,3634.7,2.7512587]
[1753172649283,5.75081335,3635.3,3634.7,0.4651]
[1753172649591,4.31385421,3635.3,3634.4,0.9921]
[1753172649740,2.75163722,3634.2,3633.9,0.9921]
[1753172649946,2.75163722,3634.2,3633.4,4.637]
[1753172649947,2.75142404,3634.5,3633.6,0.9921]
[1753172650167,2.75163722,3634.2,3633.6,0.9921]
[1753172650559,2.75141769,3634.5,3634.1,0.4661]
[1753172650779,2.75131116,3634.7,3634.4,0.001]
[1753172650946,2.75138755,3634.6,3634.4,0.001]
[1753172651148,4.637,3634.8,3634.4,0.001]
[1753172651149,3.0,3634.7,3634.4,0.001]
[1753172651348,2.75141009,3634.5,3634.4,0.001]
[1753172651569,4.637,3634.8,3634.4,0.001]
[1753172651570,2.75123272,3634.8,3634.4,0.001]
[1753172651879,3.22145885,3635.0,3634.4,0.001]
[1753172651880,3.0,3634.9,3634.4,0.001]
[1753172652079,5.75104493,3635.0,3634.4,0.001]
[1753172652283,5.75104493,3635.0,3634.5,0.4651]
[1753172652461,4.0291,3635.5,3634.6,0.9921]
[1753172652783,3.0,3635.3,3634.4,0.001]
[1753172652993,2.7511233,3634.9,3634.4,0.001]
[1753172653286,3.55,3635.3,3634.4,0.001]
[1753172653492,1.09376533,3635.2,3634.4,0.001]
[1753172653692,2.75141009,3634.5,3634.4,0.001]
[1753172654460,7.38841009,3634.5,3634.4,0.001]
[1753172655051,10.85881009,3634.5,3634.4,0.001]
[1753172655988,10.38841009,3634.5,3634.4,0.001]
[1753172656155,11.20323575,3634.5,3634.4,0.001]
[1753172656352,0.20214237,3634.5,3634.4,0.001]
[1753172656558,0.9935,3635.7,3634.4,1.4695]
[1753172656777,4.637,3635.7,3634.7,2.75121244]
[1753172656978,3.0,3635.3,3634.7,2.75125341]
[1753172657184,3.0,3635.6,3634.4,1.0044]
[1753172657368,2.75141009,3634.5,3634.4,1.0044]
[1753172657581,4.636,3635.0,3634.4,1.0044]
[1753172657777,5.75141009,3634.5,3634.4,0.001]
[1753172657990,0.55,3633.9,3631.5,1.0371]
[1753172658195,3.0,3633.1,3631.6,0.4651]
[1753172658427,3.0,3632.9,3631.7,2.7535314]
[1753172658630,0.27523946,3633.2,3632.0,2.75329174]
[1753172658926,0.27523946,3633.2,3631.6,0.4651]
[1753172658927,3.0,3632.8,3631.6,0.4651]
[1753172659218,0.1376,3631.8,3631.6,0.4651]
[1753172659422,0.1376,3631.8,3631.7,2.7535314]
[1753172659796,0.1376,3631.8,3631.7,0.4651]
[1753172659997,0.1376,3631.8,3631.5,1.0371]
[1753172660201,0.1376,3631.8,3631.5,1.5022]
[1753172660414,0.1376,3631.8,3631.2,0.1376]
[1753172660724,0.1376,3631.8,3631.7,2.7535314]
[1753172660927,0.1376,3631.8,3631.7,3.87202284]
[1753172661091,0.1376,3632.2,3631.7,1.14602675]
[1753172661285,0.1376,3632.2,3631.6,0.1376]
[1753172661286,0.1376,3632.2,3631.8,0.4651]
[1753172661512,0.1376,3632.2,3631.6,0.1376]
[1753172661513,0.1376,3632.2,3632.0,2.75323608]
[1753172661711,0.1376,3632.2,3632.1,3.21832816]
[1753172662024,18.67811704,3633.4,3632.1,3.21832816]
[1753172662025,2.8902336,3632.9,3632.1,1.6294]
[1753172662202,3.0,3633.5,3632.1,1.6294]
[1753172662203,0.1376,3632.4,3632.1,4.24502161]
[1753172662400,0.1376,3632.4,3632.3,2.75307656]
[1753172662634,4.637,3633.4,3632.7,2.75273851]
[1753172662814,0.1376,3632.7,3632.3,2.75307656]
[1753172663017,0.1376,3632.7,3632.6,2.75284919]
[1753172663217,0.1376,3632.7,3632.3,0.7135634]
[1753172663523,0.1376,3632.7,3632.5,2.75291489]
[1753172663824,0.1376,3632.7,3632.5,2.75287181]
[1753172664028,1.04554101,3634.4,3632.7,0.9864]
[1753172664326,0.71159646,3635.4,3633.4,2.75224307]
[1753172664327,0.1368,3633.9,3633.4,2.75224307]
[1753172664525,0.1368,3633.9,3633.8,2.75194011]
[1753172665028,0.1368,3633.9,3633.8,3.21704011]
[1753172665190,0.56509054,3635.2,3633.8,0.4651]
[1753172665394,0.20475856,3635.2,3634.2,2.75163722]
[1753172665603,2.75082198,3635.3,3634.5,2.75138521]
[1753172665813,3.0,3635.3,3634.6,2.75133346]
[1753172666021,22.93945038,3635.4,3634.7,2.75125177]
[1753172666219,0.1368,3634.3,3634.1,3.7704919]
[1753172666397,0.1368,3634.3,3634.2,2.75163722]
[1753172666613,0.1368,3634.3,3634.2,3.91546013]
[1753172666808,3.0,3635.3,3634.2,1.16382291]
[1753172667004,0.1368,3634.5,3634.4,2.7514858]
[1753172667206,0.1368,3634.5,3634.4,3.2165858]
[1753172667424,0.1368,3634.5,3634.4,2.7514858]
[1753172669134,0.1368,3634.5,3633.8,2.75194011]
[1753172669334,3.30103019,3635.1,3633.6,0.1376]
[1753172669499,0.4704,3634.5,3633.9,2.7518112]
[1753172669836,3.0,3634.9,3634.1,2.75271078]
[1753172670134,2.75110732,3634.9,3634.1,0.001]
[1753172670442,14.5,3635.0,3634.1,0.001]
[1753172670609,17.2510682,3635.0,3634.1,0.001]
[1753172670948,14.5,3635.0,3634.1,0.001]
[1753172671117,2.75111663,3634.9,3634.2,2.75163722]
[1753172671434,2.75105134,3635.0,3634.3,2.75155236]
[1753172671937,3.2213745,3635.1,3634.4,2.75148345]
[1753172672229,2.75095595,3635.1,3634.4,2.75148345]
[1753172672438,0.1368,3634.4,3634.2,2.75158252]
[1753172672747,2.95469928,3635.2,3634.5,2.75136207]
[1753172673033,2.95469928,3635.2,3634.6,2.75132486]
[1753172673400,0.1368,3634.6,3634.1,0.42319758]
[1753172673607,0.1368,3634.3,3634.1,0.001]
[1753172673933,0.1368,3634.3,3634.2,3.21673722]
[1753172674308,0.1368,3634.3,3634.1,2.75268683]
[1753172674707,0.1368,3634.3,3634.1,0.001]
[1753172674924,2.75119273,3634.8,3634.1,0.001]
[1753172675139,2.7513637,3634.6,3634.1,0.001]
[1753172675342,0.32215927,3634.8,3634.2,2.75160239]
[1753172675544,2.75119801,3634.8,3634.2,2.75160239]
[1753172675832,0.1368,3634.2,3634.1,2.7526939]
[1753172676606,0.1368,3634.2,3634.1,2.75271294]
[1753172677201,0.1368,3634.2,3634.1,0.001]
[1753172677557,2.88843722,3634.2,3634.1,0.001]
[1753172677710,7.91303822,3634.2,3634.1,0.001]
[1753172678642,7.44323822,3634.2,3634.1,0.001]
[1753172678829,7.91303822,3634.2,3634.1,0.001]
[1753172679031,0.1368,3634.2,3634.1,0.001]
[1753172679249,2.88843722,3634.2,3634.1,0.001]
[1753172679444,0.1368,3634.2,3634.1,0.001]
[1753172680513,0.1368,3634.2,3634.1,3.19521294]
[1753172680721,0.1368,3634.2,3634.1,3.7899191]
[1753172681365,0.1368,3634.2,3634.1,3.19521294]
[1753172683573,2.7528292,3635.3,3634.1,4.15231294]
[1753172683758,0.1368,3634.6,3634.5,2.75141009]
[1753172684262,0.1368,3634.6,3634.5,0.4425]
[1753172684469,0.1368,3634.6,3634.4,2.75148247]
[1753172684863,0.1368,3634.6,3634.2,2.75162751]
[1753172684864,0.1368,3634.6,3634.5,2.75141009]
[1753172685471,0.1368,3634.6,3634.3,3.1940518]
[1753172685472,0.1368,3634.6,3634.4,2.7514854]
[1753172685672,0.1368,3634.6,3634.5,2.75141009]
[1753172686037,0.1368,3634.6,3634.5,3.19391009]
[1753172686448,0.1368,3634.6,3634.5,7.82491009]
[1753172686648,0.1368,3634.6,3634.1,0.001]
[1753172686969,0.1368,3634.4,3634.1,0.001]
[1753172687947,2.75160866,3634.3,3634.1,0.001]
[1753172688142,2.75160866,3634.3,3634.2,4.63]
[1753172688347,0.1368,3634.4,3634.2,4.63]
[1753172689272,0.1368,3634.4,3634.3,2.75156151]
[1753172689462,2.75095595,3635.1,3634.1,0.001]
[1753172689676,2.75163722,3634.2,3634.1,0.001]
[1753172690066,3.22143722,3634.2,3634.1,0.001]
[1753172690763,2.751492,3634.4,3634.1,0.001]
[1753172690968,2.75148478,3634.5,3634.1,0.001]
[1753172691265,6.09033782,3635.2,3634.1,0.001]
[1753172691266,7.629,3635.1,3634.1,0.001]
[1753172691472,2.75103163,3635.0,3634.1,2.75268135]
[1753172691644,0.1368,3634.3,3634.2,2.75163722]
[1753172691839,0.1368,3634.3,3634.2,3.19413722]
[1753172692340,0.1368,3634.3,3634.2,0.4425]
[1753172692545,0.1368,3634.3,3634.2,3.45102805]
[1753172692747,0.002,3634.5,3634.4,2.7514858]
[1753172692979,0.002,3634.5,3634.4,7.63637663]
[1753172693151,0.002,3634.5,3634.4,5.32739083]
[1753172693557,0.002,3634.5,3634.4,4.88489083]
[1753172693957,0.002,3634.5,3634.4,0.25689083]
[1753172694157,0.002,3634.5,3634.4,4.88489083]
[1753172695990,0.002,3634.5,3634.4,8.07887663]
[1753172696493,0.002,3634.5,3634.4,4.88489083]
[1753172697013,0.002,3634.5,3634.4,7.63637663]
[1753172697207,0.002,3634.5,3634.4,8.07887663]
[1753172697358,0.002,3634.5,3634.4,8.07687663]
[1753172698597,0.002,3634.5,3634.4,5.32539083]
[1753172698772,0.002,3634.5,3634.4,8.07687663]
[1753172698965,0.002,3634.5,3634.4,5.32539083]
[1753172699164,0.002,3634.5,3634.4,8.07687663]
[1753172700202,0.002,3634.5,3634.4,5.32539083]
[1753172700498,0.002,3634.5,3634.4,4.88189083]
[1753172700797,3.22321009,3634.5,3634.4,0.25689083]
[1753172700975,3.93598345,3634.5,3634.4,0.25689083]
[1753172701424,0.002,3634.5,3634.4,0.69939083]
[1753172701562,0.002,3634.5,3634.4,0.4425]
[1753172701764,0.002,3634.5,3634.3,4.624]
[1753172701972,2.88836151,3634.3,3634.2,4.624]
[1753172702173,2.75163722,3634.2,3634.1,0.001]
[1753172702380,3.77195604,3634.2,3634.1,0.001]
[1753172702618,3.77195604,3634.2,3634.1,0.25818415]
[1753172703262,11.39595604,3634.2,3634.1,0.25818415]
[1753172703466,11.39595604,3634.2,3634.1,0.001]
[1753172703676,2.75224307,3633.4,3633.3,0.001]
[1753172703975,3.76864307,3633.4,3633.3,0.001]
[1753172704168,18.73844307,3633.4,3633.3,0.001]
[1753172705285,21.73844307,3633.4,3633.3,0.001]
[1753172705483,22.28844307,3633.4,3633.3,1e-08]
[1753172705686,3.72097341,3632.7,3632.6,0.001]
[1753172705889,17.77729488,3632.7,3632.6,0.001]
[1753172706081,18.24709488,3632.7,3632.6,1e-08]
[1753172706302,0.55,3632.5,3631.0,0.004]
[1753172706505,1.0173,3631.2,3631.0,0.004]
[1753172706805,2.75331099,3632.0,3631.0,0.004]
[1753172706806,1.0173,3632.4,3631.1,0.4323]
[1753172707007,5.88332147,3633.0,3631.8,1.0416]
[1753172707008,1.4546,3632.8,3631.8,1.0416]
[1753172707412,1.4546,3632.8,3631.7,0.4323]
[1753172707413,1.4546,3632.8,3631.5,2.75366576]
[1753172707574,1.4546,3632.8,3631.3,4.22770197]
[1753172707575,2.75328579,3632.1,3631.3,1.4739]
[1753172707774,0.4373,3632.3,3631.0,0.004]
[1753172708095,2.7533999,3631.9,3631.1,2.75396895]
[1753172708282,0.63206215,3632.2,3631.0,0.004]
[1753172708486,3.98130995,3632.8,3632.0,2.75324639]
[1753172708686,8.60427171,3632.8,3632.1,2.75322197]
[1753172708910,0.21125771,3632.8,3631.7,0.4323]
[1753172709112,2.75278572,3632.7,3631.8,2.75339602]
[1753172709292,2.75278572,3632.7,3632.0,2.75328159]
[1753172709607,0.20490099,3632.8,3632.1,2.75321615]
[1753172709811,4.623,3632.9,3632.0,2.75327178]
[1753172709987,4.623,3632.9,3632.1,2.75316362]
[1753172710192,5.22505,3632.9,3631.7,3.18576545]
[1753172710512,0.60205,3632.9,3631.7,0.4323]
[1753172710712,0.60205,3632.9,3631.0,0.004]
[1753172710713,6.92402147,3631.8,3631.0,0.004]
[1753172710879,2.75398639,3631.1,3631.0,0.004]
[1753172711078,17.25398639,3631.1,3631.0,0.004]
[1753172711283,21.72818639,3631.1,3631.0,0.004]
[1753172711589,2.75469925,3630.2,3629.8,0.004]
[1753172711916,2.75484285,3630.0,3629.8,0.004]
[1753172712226,2.75489682,3629.9,3629.8,0.004]
[1753172712416,5.75489682,3629.9,3629.8,0.004]
[1753172712718,5.75489682,3629.9,3627.7,0.4323]
[1753172712719,0.55,3629.4,3627.7,0.4323]
[1753172712885,0.55,3629.1,3627.8,2.75642171]
[1753172713085,0.4373,3629.0,3627.3,0.4323]
[1753172713300,0.4373,3629.0,3627.1,5.6288]
[1753172713301,0.55,3628.8,3627.4,0.60886695]
[1753172713619,0.55,3628.8,3627.1,1.0058]
[1753172713620,0.34373,3628.9,3627.5,0.45986719]
[1753172713835,0.34373,3628.9,3627.6,0.02756643]
[1753172713983,0.4373,3628.8,3627.5,2.75670279]
[1753172714184,0.4373,3628.8,3627.2,4.623]
[1753172714407,1.0369,3628.7,3627.2,0.02756947]
[1753172714749,0.20824101,3628.9,3627.4,2.7567955]
[1753172714923,1.0369,3629.2,3627.5,0.4323]
[1753172715124,1.0369,3629.2,3628.7,2.75574044]
[1753172715424,14.5,3629.9,3627.5,5.0543]
[1753172715425,3.0,3629.7,3628.2,1.4381]
[1753172715587,1.0369,3629.9,3628.4,2.75603571]
[1753172715920,0.67521947,3631.5,3628.3,0.45986111]
[1753172715921,1.0369,3630.6,3629.2,1.0058]
[1753172716084,6.55854094,3631.5,3629.2,1.0058]
[1753172716085,0.9556,3631.1,3629.3,0.45985352]
[1753172716287,0.9556,3631.1,3630.3,2.75458605]
[1753172716620,0.9556,3631.1,3630.1,2.75474218]
[1753172716621,0.1336,3630.3,3630.2,2.75466916]
[1753172716807,0.1336,3630.3,3629.6,2.78260378]